{"text_format":"1","workbook":"xlsx","n_sheets":14,"sheets":["Cover","Info","Results","E01","E02","E03","E04","E05","E06","E07","E08","E09","E10","About"],"not_rendered":{"charts":11,"images":38,"macros":1,"external_links":0,"defined_names":15,"comments":0,"pivot_tables":0},"unopened":[],"bounds":{"document_bytes":16777216,"sheet_cells":100000,"rows_first":2000,"rows_last":500,"rows_between":2000,"halvings":0,"cell_chars":16384,"cell_head_chars":4096},"cells_cut":0,"cells_raw":0,"read":"whole","date_system":"1900"}

{"sheet":"Cover","index":0,"n_rows":0,"n_cols":0,"rows_kept":0,"cut":false,"hidden":false,"merged":[]}

{"sheet":"Info","index":1,"n_rows":39,"n_cols":4,"rows_kept":39,"cut":false,"hidden":false,"merged":[[38,1,38,3],[39,1,39,3],[2,1,2,2],[3,1,3,2],[4,1,4,2],[5,1,5,2],[6,1,6,2],[37,1,37,3],[31,1,31,2],[32,1,32,2],[33,1,33,2],[34,1,34,2],[35,1,35,2]]}
[]
[]
[null,"Această evaluare",null,"Răspunsul"]
[null,"Denumirea orașului"]
[null,"Tipul orașului (municipiu, zone metropolitan etc.)"]
[null,"Țara"]
[null,"Data evaluării"]
[]
[null,"Profilul orașului (obligatoriu)","Răspunsul","Sursa datează"]
[null,"Titlul autorității superioare (de ex.: primar etc.)"]
[null,"Populația totală a orașului:"]
[null,"Kilometri pătrați ai orașului:"]
[null,"Densitatea populației (per kilometru pătrat):"]
[null,"Populația tânără (15-24) (%):"]
[null,"Populația cetățenilor în vârstă (peste 65 de ani) (%):"]
[null,"Gen (gospodării conduse de femei):"]
[null,"Rata de alfabetizare (% populație alfabetizată):"]
[null,"Rata sărăciei (% populație care nu este în sărăcie):"]
[null,"Venitul mediu al gospodăriei (USD):"]
[null,"Rezidenți care nu sunt cetățeni (%):"]
[null,"Cel mai probabil risc de dezastru cunoscut:"]
[null,"Cel mai grav dezastru (cunoscut):"]
[]
[null,"Profilul orașului (opțional)","Răspunsul","Sursa datează"]
[null,"Numărul total de gospodării:"]
[null,"Persoane per unitate:"]
[null,"Costul de trai (USD):"]
[null,"PIB-ul țării pe cap de locuitor (USD)"]
[null,"Coeficientul Gini:"]
[null,"Produsul urban pe cap de locuitor (USD)"]
[]
[null,"Echipa guvernamentală locală de reducere a riscurilor de dezastre și reziliență",null,"Răspunsul"]
[null,"Numele persoanei care conduce / coordonează finalizarea evaluării Scorecard:"]
[null,"Organizație:"]
[null,"Date de contact:"]
[null,"Disponibilitatea de a împărtăși rezultatele sau de a fi folosite ca exemplu / studiu de caz de către UNDRR și parteneri:"]
[]
[null,"Informații ale părților interesate"]
[null,"Vă rugăm să enumerați mai jos toate părțile interesate care au susținut această evaluare."]

{"sheet":"Results","index":2,"n_rows":221,"n_cols":13,"rows_kept":221,"cut":false,"hidden":false,"merged":[[131,2,131,5],[35,2,35,5],[36,2,36,5],[37,2,37,5],[123,2,123,5],[124,2,124,5],[125,2,125,5],[47,2,47,5],[48,2,48,5],[49,2,49,5],[50,2,50,5],[126,2,126,5],[127,2,127,5],[128,2,128,5],[129,2,129,5],[130,2,130,5],[51,2,51,5],[61,2,61,5],[62,2,62,5],[63,2,63,5],[64,2,64,5],[89,2,89,5],[85,1,85,6],[74,2,74,5],[75,2,75,5],[76,2,76,5],[77,2,77,5],[87,2,87,5],[88,2,88,5],[111,2,111,5],[98,2,98,5],[94,1,94,6],[96,2,96,5],[97,2,97,5],[106,1,106,6],[108,2,108,5],[109,2,109,5],[110,2,110,5],[99,2,99,5],[100,2,100,5],[101,2,101,5],[158,1,158,3],[134,1,134,6],[136,2,136,5],[137,2,137,5],[138,2,138,5],[139,2,139,5],[140,2,140,5],[141,2,141,5],[142,2,142,5],[146,1,146,6],[148,2,148,5],[149,2,149,5]]}
[]
[]
[]
[]
[]
[]
[]
[]
[]
[]
[]
[]
[]
[]
[]
[]
[]
[]
[]
[]
[]
[]
[]
[]
[]
[]
[]
[]
[]
[]
[]
[]
[]
[null,"ESENȚIALUL 01: Pregătirea pentru reziliență"]
[]
[null,{"$f":"C175","v":"P1.1"},{"$f":"E175","v":"Planul urbanistic general (sau strategia / planul relevant) include și pune în aplicare abordări de reducere a riscurilor de dezastre în conformitate cu Cadrul de la Sendai?"},null,null,null,{"$f":"F175","v":0}]
[null,{"$f":"C176","v":"P1.2"},{"$f":"E176","v":"Există un mecanism multi-disciplinar/sectorial cu autoritate și resurse corespunzătoare pentru a aborda reducerea riscurilor de dezastre?"},null,null,null,{"$f":"F176","v":0}]
[null,{"$f":"C177","v":"P1.3"},{"$f":"E177","v":"Reziliența este integrată corect cu alte funcții / portofolii cheie ale orașului? (de ex., planificare, durabilitate, aprobarea investițiilor, finanțare și conformitate, implicarea comunității, gestionarea situațiilor de urgență, conformitatea codului, gestionarea infrastructurii, comunicații etc.)"},null,null,null,{"$f":"F177","v":0}]
[]
[]
[]
[]
[]
[]
[]
[null,"ESENȚIALUL 02: Identificarea, înțelegerea și întrebuințarea scenariilor de risc curente și viitoare"]
[]
[null,{"$f":"C178","v":"P2.1"},{"$f":"E178","v":"Orașul cunoaște despre principalele pericole cu care se confruntă și care este probabilitatea de producere a acestora?"},null,null,null,{"$f":"F178","v":0}]
[null,{"$f":"C179","v":"P2.2"},{"$f":"E179","v":"Există o înțelegere comună a riscurilor între oraș și diverși furnizori de servicii publice, alte agenții regionale și naționale care au un rol în gestionarea infrastructurii, cum ar fi de electricitate, alimentare cu apă, drumuri și căi ferate, în materie de puncte de stres asupra sistemului și riscuri la nivel de oraș?"},null,null,null,{"$f":"F179","v":0}]
[null,{"$f":"C180","v":"P2.3"},{"$f":"E180","v":"Există scenarii convenite care să stabilească expunerea și vulnerabilitatea orașului pentru fiecare pericol aparte sau grup de pericole (a se vedea mai sus)?"},null,null,null,{"$f":"F180","v":0}]
[null,{"$f":"C181","v":"P2.4"},{"$f":"E181","v":"Există o înțelegere colectivă a potențialelor defecțiuni în cascadă între diverse sisteme și infrastructuri din oraș, în cadrul unor scenarii diferite?"},null,null,null,{"$f":"F181","v":0}]
[null,{"$f":"C182","v":"P2.5"},{"$f":"E182","v":"Există hărți de risc și date despre risc? Sunt acestea actualizare în mod regulat?"},null,null,null,{"$f":"F182","v":0}]
[]
[]
[]
[]
[]
[]
[]
[null,"ESENȚIALUL 03: Consolidarea capacității financiare pentru reziliență"]
[]
[null,{"$f":"C183","v":"P3.1"},{"$f":"E183","v":"Orașul / principalele agenții înțeleg toate sursele de finanțare și „dividendele de reziliență”, sunt bine conectate, înțeleg toate mijloacele posibile de atragere a fondurilor externe și sunt în căutare activă de fonduri care pot fi investite în reziliență."},null,null,null,{"$f":"F183","v":0}]
[null,{"$f":"C184","v":"P3.2"},{"$f":"E184","v":"Dispune orașul de un buget specific și dedicat (protejat), de resurse necesare și fonduri de urgență pentru reducerea (atenuare, prevenire, răspuns și recuperare) riscurilor de dezastre la nivel local?"},null,null,null,{"$f":"F184","v":0}]
[null,{"$f":"C185","v":"P3.3"},{"$f":"E185","v":"Ce nivel de acoperire prin asigurări există în oraș, în toate sectoarele – afaceri și comunitate?"},null,null,null,{"$f":"F185","v":0}]
[null,{"$f":"C186","v":"P3.4"},{"$f":"E186","v":"Ce stimulente există pentru diferite sectoare și segmente ale afacerilor și societății menite să sprijine consolidarea rezilienței?"},null,null,null,{"$f":"F186","v":0}]
[]
[]
[]
[]
[]
[]
[]
[null,"ESENȚIALUL 04: Urmărirea dezvoltării urbane reziliente"]
[]
[null,{"$f":"C187","v":"P4.1"},{"$f":"E187","v":"Orașul este zonat corespunzător, cu luarea în considerare, spre exemplu, a impactului principalelor scenarii de risc asupra activității economice, producției agricole și zonelor populate?"},null,null,null,{"$f":"F187","v":0}]
[null,{"$f":"C188","v":"P4.2"},{"$f":"E188","v":"Abordările aplicate în cadrul proiectării și realizării de noi dezvoltări urbane promovează reziliența?"},null,null,null,{"$f":"F188","v":0}]
[null,{"$f":"C189","v":"P4.3"},{"$f":"E189","v":"Există norme sau standarde de construcții? Abordează acestea pericolele și riscurile specifice cunoscute pentru oraș? Sunt aceste standarde actualizate în mod regulat?"},null,null,null,{"$f":"F189","v":0}]
[null,{"$f":"C190","v":"P4.4"},{"$f":"E190","v":"Regulile de zonare, normele și standardele de construcție sunt aplicate pe scară largă, sunt respectate și verificate în modul corespunzător?"},null,null,null,{"$f":"F190","v":0}]
[]
[]
[]
[]
[]
[]
[]
[null,"ESENȚIALUL 05: Salvgardarea amortizoarelor naturale pentru a spori funcțiile de protecție oferite de ecosistemele naturale"]
[]
[null,{"$f":"C191","v":"P5.1"},{"$f":"E191","v":"Dincolo de simpla cunoaștere a activelor naturale, orașul înțelege funcțiile (sau serviciile) oferite orașului de către acest capital natural?"},null,null,null,{"$f":"F191","v":0}]
[null,{"$f":"C192","v":"P5.2"},{"$f":"E192","v":"Este infrastructura verde și albastră promovată prin politici în cadrul proiectelor majore de dezvoltare și infrastructură urbană?"},null,null,null,{"$f":"F192","v":0}]
[null,{"$f":"C193","v":"P5.3"},{"$f":"E193","v":"Este orașul conștient de serviciile ecosistemice care-i sunt puse la dispoziție prin capitalul natural amplasat dincolo de granițele sale administrative? Există acorduri în vigoare încheiate cu administrațiile învecinate pentru a sprijini protecția și gestionarea acestor active?"},null,null,null,{"$f":"F193","v":0}]
[]
[]
[]
[]
[null,"ESENȚIALUL 06: Consolidarea capacității instituționale pentru reziliență"]
[]
[null,{"$f":"C194","v":"P6.1"},{"$f":"E194","v":"Orașul are acces liber la toate competențele și experiențele pe care le consideră necesare pentru a răspunde și reduce riscurile și pentru a interveni în cazul scenariilor de dezastru identificate? "},null,null,null,{"$f":"F194","v":0}]
[null,"P6.2","Există o campanie coordonată de sensibilizare și educare a publicului, cu mesaje structurate și canale de distribuire pentru a asigura diseminarea în mod corespunzător către public a informațiilor (care pot fi înțelese și utilizate) despre pericole, riscuri și dezastre?",null,null,null,0]
[null,"P6.3","Nivelul de partajare a datelor privind reziliența urbană cu alte organizații implicate în activitățile de asigurare a rezilienței orașului. ",null,null,null,0]
[null,"P6.4","Există cursuri de formare care să acopere aspectele de risc și reziliență și care să fie adresate reprezentanților tuturor sectoarelor orașului, inclusiv administrație, agenți economici, ONG-uri și comunitate?",null,null,null,0]
[null,"P6.5","Materialele de formare sunt disponibile în majoritatea limbilor folosite în mod curent în oraș?",null,null,null,0]
[null,"P6.6","Orașul urmărește în mod activ să facă schimb de cunoștințe și să învețe de la alte orașe care se confruntă cu provocări similare?",null,null,null,0]
[]
[]
[]
[]
[null,"ESENȚIALUL 07: Înțelegerea și consolidarea capacității sociale pentru reziliență"]
[]
[null,{"$f":"C200","v":"P7.1"},{"$f":"E200","v":"Organizațiile locale sau comunitare participă la planificarea pre-eveniment și răspunsul post-eveniment pentru fiecare cartier din oraș?"},null,null,null,{"$f":"F200","v":0}]
[null,{"$f":"C201","v":"P7.2"},{"$f":"E201","v":"Există programe regulate de formare adresate celor mai vulnerabile și nevoiașe categorii de populație din oraș?"},null,null,null,{"$f":"F201","v":0}]
[null,{"$f":"C202","v":"P7.3"},{"$f":"E202","v":"Care este proporția de agenți economici care dispun de un plan documentat de continuitate a activității revizuit în ultimele 18 luni?"},null,null,null,{"$f":"F202","v":0}]
[null,{"$f":"C203","v":"P7.4"},{"$f":"E203","v":"Cât de eficient este orașul la capitolul implicarea cetățenilor și comunicarea cu cetățenii în legătură cu RRD?"},null,null,null,{"$f":"F203","v":0}]
[]
[]
[]
[]
[]
[]
[]
[]
[]
[null,"ESENȚIALUL 08: Creșterea rezilienței infrastructurii"]
[]
[null,{"$f":"C204","v":"P8.1"},{"$f":"E204","v":"Reziliența infrastructurii de importanță critică reprezintă o prioritate pentru oraș? Orașul dispune de un plan sau strategie privind infrastructura de importanță critică pe care-l pune în aplicare?"},null,null,null,{"$f":"F204","v":0}]
[null,{"$f":"C205","v":"P8.2"},{"$f":"E205","v":"Infrastructurile de protecție existente sunt bine proiectate și construite temeinic pe baza informațiilor privind riscurile?"},null,null,null,{"$f":"F205","v":0}]
[null,"P8.3",{"$f":"E206","v":"În cadrul scenariilor de dezastru stabilite, ar fi posibilă o pierdere semnificativă a acestor două servicii esențiale pentru o parte considerabilă din oraș?"},null,null,null,0]
[null,"P8.4",{"$f":"E207","v":"În cadrul „celui mai pesimist” scenariu, ar fi posibilă o pierdere semnificativă a serviciului pentru o parte considerabilă din oraș? În cazul unei defecțiuni, coridoarele infrastructurii energetice vor rămâne în siguranță (adică, fără risc de scurgeri, pericole de electrocutare etc.)?"},null,null,null,0]
[null,"P8.5","În cadrul „celui mai pesimist” scenariu, ar fi posibilă o pierdere semnificativă a serviciului pentru o parte considerabilă din oraș? În cazul unei defecțiuni, coridoarele infrastructurii de transport vor rămâne în siguranță (adică, fără risc de inundații, șocuri etc) și practicabile?",null,null,null,0]
[null,"P8.6","În cadrul „celui mai pesimist” scenariu, ar fi posibilă o pierdere semnificativă a serviciului pentru o parte considerabilă din oraș?",null,null,null,0]
[null,"P8.7","Vor exista suficiente capacități de asistență medicală de urgență pentru a face față traumatismelor gravee în cazul producerii „celui mai pesimist” scenariu?",null,null,null,0]
[null,"P8.8","% din infrastructura educațională expusă riscului de deteriorare în rezultatul producerii „celor mai probabile” și „celor mai grave” scenarii.",null,null,null,0]
[null,{"$f":"C212","v":"P8.9"},"Vor exista suficiente echipamente de primă intervenție, cu susținere din partea armatei și a civililor, după caz?",null,null,null,0]
[]
[]
[null,"ESENȚIALUL 09: Asigurarea răspunsului eficient la dezastru"]
[]
[null,{"$f":"C213","v":"P9.1"},{"$f":"E213","v":"Dispune orașul de un plan sau procedură standard de operare pentru a activa sistemele de avertizare timpurie și prognoză? Ce proporție din populație este accesibilă prin sistemul de avertizare timpurie?"},null,null,null,{"$f":"F213","v":0}]
[null,{"$f":"C214","v":"P9.2"},"Există un plan de gestionare / pregătire / răspuns la situații de urgență în cazul producerii unui dezastru care să descrie măsurile de atenuare, pregătire și răspuns ale orașului în cazul producerii unor situații de urgență la nivel local?",null,null,null,0]
[null,"P9.3","Autoritatea responsabilă de gestionarea dezastrelor dispune de suficient personal pentru a sprijini operațiunile echipelor de intervenție de urgență în cazul scenariilor de situații de urgență?",null,null,null,0]
[null,"P9.4","Sunt necesitățile de echipamente și aprovizionare, precum și disponibilitatea echipamentelor, clar definite?",null,null,null,0]
[null,"P9.5","Ar putea orașul să continue să-și asigure populația cu hrană și adăpost după eveniment?",null,null,null,0]
[null,"P9.6","Există un centru de operațiuni de urgență, cu participarea tuturor agențiilor, care automatizează procedurile standard de operare concepute pentru a face față scenariilor „celor mai probabile” și ”celor mai grave”?",null,null,null,0]
[null,"P9.7","În activitățile practice și exerciții sunt antrenate atât publicul cât și specialiștii?",null,null,null,0]
[]
[]
[]
[null,"ESENȚIALUL 10: Accelerarea recuperării și reconstruirii de o calitate mai bună"]
[]
[null,{"$f":"C220","v":"P10.1"},{"$f":"E220","v":"Există o strategie sau proces în vigoare cu privire la recuperarea și revenirea post-eveniment, inclusiv relansarea economică, aspectele sociale etc.?"},null,null,null,{"$f":"F220","v":0}]
[null,{"$f":"C221","v":"P10.2"},{"$f":"E221","v":"Procesele de evaluare post-eveniment încorporează analiza eșecului și capacitatea de a ține seama de lecțiile învățate pentru a le integra în conceperea și realizarea proiectelor de reconstrucție?"},null,null,null,{"$f":"F221","v":0}]
[]
[]
[]
[]
[]
[]
[]
[]
[null,{"$f":"TODAY()","v":"2020-11-28"}]
[]
[]
[null,null,"Label","Name",null,"Essential","TotalScore","MaxScore","Label"]
[null,null,"S1","1.   Pregătirea pentru reziliență",null,"E1",{"$f":"SUMIFS($F$175:$F$1154,$B$175:$B$1154,F163)","v":0},{"$f":"COUNTIFS($B$175:$B$221,F163)*3","v":9},"01",null,{"$f":"SUM(G163:G172)","v":0},{"$f":"K163/K164","v":0},{"$f":"CONCATENATE(\"Punctajul total pentru această evaluare este de \",SUM(G163:G172),\" / \",SUM(H163:H172))","v":"Punctajul total pentru această evaluare este de 0 / 141"}]
[null,null,"S2","2.   Identificarea, înțelegerea și întrebuințarea scenariilor de risc curente și viitoare",null,"E2",0,15,"02",null,{"$f":"SUM(H163:H172)","v":141},{"$f":"1-L163","v":1}]
[null,null,"S3","3.   Consolidarea capacității financiare pentru reziliență",null,"E3",0,12,"03"]
[null,null,"S4","4.   Urmărirea dezvoltării urbane reziliente",null,"E4",0,12,"04"]
[null,null,"S5","5.   Salvgardarea amortizoarelor naturale pentru a spori funcțiile de protecție oferite de ecosistemele naturale",null,"E5",0,9,"05"]
[null,null,"S6","6.   Consolidarea capacității instituționale pentru reziliență",null,"E6",0,18,"06"]
[null,null,"S7","7.   Înțelegerea și consolidarea capacității sociale pentru reziliență",null,"E7",0,12,"07"]
[null,null,"S8","8.   Creșterea rezilienței infrastructurii",null,"E8",0,27,"08"]
[null,null,"S9","9.   Asigurarea răspunsului eficient la dezastru",null,"E9",0,21,"09"]
[null,null,"S10","10. Accelerarea recuperării și reconstruirii de o calitate mai bună",null,"E10",0,6,"10"]
[]
[null,"Section","Ref",null,"Question","SelectedScore","ThisScore"]
[null,"E1","P1.1",null,"Planul urbanistic general (sau strategia / planul relevant) include și pune în aplicare abordări de reducere a riscurilor de dezastre în conformitate cu Cadrul de la Sendai?",{"$f":"IF(G175=\"\",0,IF(G175=0,0,4-G175))","v":0},{"$f":"'E01'!$E$7","v":0}]
[null,"E1","P1.2",null,"Există un mecanism multi-disciplinar/sectorial cu autoritate și resurse corespunzătoare pentru a aborda reducerea riscurilor de dezastre?",{"$f":"IF(G176=\"\",0,IF(G176=0,0,4-G176))","v":0},{"$f":"'E01'!$E$18","v":0}]
[null,"E1","P1.3",null,"Reziliența este integrată corect cu alte funcții / portofolii cheie ale orașului? (de ex., planificare, durabilitate, aprobarea investițiilor, finanțare și conformitate, implicarea comunității, gestionarea situațiilor de urgență, conformitatea codului, gestionarea infrastructurii, comunicații etc.)",0,{"$f":"'E01'!$E$29","v":0}]
[null,"E2","P2.1",null,"Orașul cunoaște despre principalele pericole cu care se confruntă și care este probabilitatea de producere a acestora?",0,{"$f":"'E02'!$E$7","v":0}]
[null,"E2","P2.2",null,"Există o înțelegere comună a riscurilor între oraș și diverși furnizori de servicii publice, alte agenții regionale și naționale care au un rol în gestionarea infrastructurii, cum ar fi de electricitate, alimentare cu apă, drumuri și căi ferate, în materie de puncte de stres asupra sistemului și riscuri la nivel de oraș?",0,{"$f":"'E02'!$E$18","v":0}]
[null,"E2","P2.3",null,"Există scenarii convenite care să stabilească expunerea și vulnerabilitatea orașului pentru fiecare pericol aparte sau grup de pericole (a se vedea mai sus)?",0,{"$f":"'E02'!$E$29","v":0}]
[null,"E2","P2.4",null,"Există o înțelegere colectivă a potențialelor defecțiuni în cascadă între diverse sisteme și infrastructuri din oraș, în cadrul unor scenarii diferite?",0,{"$f":"'E02'!$E$40","v":0}]
[null,"E2","P2.5",null,"Există hărți de risc și date despre risc? Sunt acestea actualizare în mod regulat?",0,{"$f":"'E02'!$E$51","v":0}]
[null,"E3","P3.1",null,"Orașul / principalele agenții înțeleg toate sursele de finanțare și „dividendele de reziliență”, sunt bine conectate, înțeleg toate mijloacele posibile de atragere a fondurilor externe și sunt în căutare activă de fonduri care pot fi investite în reziliență.",0,{"$f":"'E03'!$E$7","v":0}]
[null,"E3","P3.2",null,"Dispune orașul de un buget specific și dedicat (protejat), de resurse necesare și fonduri de urgență pentru reducerea (atenuare, prevenire, răspuns și recuperare) riscurilor de dezastre la nivel local?",0,{"$f":"'E03'!$E$18","v":0}]
[null,"E3","P3.3",null,"Ce nivel de acoperire prin asigurări există în oraș, în toate sectoarele – afaceri și comunitate?",0,{"$f":"'E03'!$E$29","v":0}]
[null,"E3","P3.4",null,"Ce stimulente există pentru diferite sectoare și segmente ale afacerilor și societății menite să sprijine consolidarea rezilienței?",0,{"$f":"'E03'!$E$40","v":0}]
[null,"E4","P4.1",null,"Orașul este zonat corespunzător, cu luarea în considerare, spre exemplu, a impactului principalelor scenarii de risc asupra activității economice, producției agricole și zonelor populate?",0,{"$f":"'E04'!$E$7","v":0}]
[null,"E4","P4.2",null,"Abordările aplicate în cadrul proiectării și realizării de noi dezvoltări urbane promovează reziliența?",0,{"$f":"'E04'!$E$18","v":0}]
[null,"E4","P4.3",null,"Există norme sau standarde de construcții? Abordează acestea pericolele și riscurile specifice cunoscute pentru oraș? Sunt aceste standarde actualizate în mod regulat?",0,{"$f":"'E04'!$E$29","v":0}]
[null,"E4","P4.4",null,"Regulile de zonare, normele și standardele de construcție sunt aplicate pe scară largă, sunt respectate și verificate în modul corespunzător?",0,{"$f":"'E04'!$E$40","v":0}]
[null,"E5","P5.1",null,"Dincolo de simpla cunoaștere a activelor naturale, orașul înțelege funcțiile (sau serviciile) oferite orașului de către acest capital natural?",0,{"$f":"'E05'!$E$7","v":0}]
[null,"E5","P5.2",null,"Este infrastructura verde și albastră promovată prin politici în cadrul proiectelor majore de dezvoltare și infrastructură urbană?",0,{"$f":"'E05'!$E$18","v":0}]
[null,"E5","P5.3",null,"Este orașul conștient de serviciile ecosistemice care-i sunt puse la dispoziție prin capitalul natural amplasat dincolo de granițele sale administrative? Există acorduri în vigoare încheiate cu administrațiile învecinate pentru a sprijini protecția și gestionarea acestor active?",0,{"$f":"'E05'!$E$29","v":0}]
[null,"E6","P6.1",null,"Orașul are acces liber la toate competențele și experiențele pe care le consideră necesare pentru a răspunde și reduce riscurile și pentru a interveni în cazul scenariilor de dezastru identificate? ",0,{"$f":"'E06'!$E$7","v":0}]
[null,"E6","P6.2",null,"Există o campanie coordonată de sensibilizare și educare a publicului, cu mesaje structurate și canale de distribuire pentru a asigura diseminarea în mod corespunzător către public a informațiilor (care pot fi înțelese și utilizate) despre pericole, riscuri și dezastre?",0,{"$f":"'E06'!$E$18","v":0}]
[null,"E6","P6.3",null,"Nivelul de partajare a datelor privind reziliența urbană cu alte organizații implicate în activitățile de asigurare a rezilienței orașului. ",0,{"$f":"'E06'!$E$29","v":0}]
[null,"E6","P6.4",null,"Există cursuri de formare care să acopere aspectele de risc și reziliență și care să fie adresate reprezentanților tuturor sectoarelor orașului, inclusiv administrație, agenți economici, ONG-uri și comunitate?",0,{"$f":"'E06'!$E$40","v":0}]
[null,"E6","P6.5",null,"Materialele de formare sunt disponibile în majoritatea limbilor folosite în mod curent în oraș?",0,{"$f":"'E06'!$E$51","v":0}]
[null,"E6","P6.6",null,"Orașul urmărește în mod activ să facă schimb de cunoștințe și să învețe de la alte orașe care se confruntă cu provocări similare?",0,{"$f":"'E06'!$E$62","v":0}]
[null,"E7","P7.1",null,"Organizațiile locale sau comunitare participă la planificarea pre-eveniment și răspunsul post-eveniment pentru fiecare cartier din oraș?",0,{"$f":"'E07'!$E$7","v":0}]
[null,"E7","P7.2",null,"Există programe regulate de formare adresate celor mai vulnerabile și nevoiașe categorii de populație din oraș?",0,{"$f":"'E07'!$E$18","v":0}]
[null,"E7","P7.3",null,"Care este proporția de agenți economici care dispun de un plan documentat de continuitate a activității revizuit în ultimele 18 luni?",0,{"$f":"'E07'!$E$29","v":0}]
[null,"E7","P7.4",null,"Cât de eficient este orașul la capitolul implicarea cetățenilor și comunicarea cu cetățenii în legătură cu RRD?",0,{"$f":"'E07'!$E$40","v":0}]
[null,"E8","P8.1",null,"Reziliența infrastructurii de importanță critică reprezintă o prioritate pentru oraș? Orașul dispune de un plan sau strategie privind infrastructura de importanță critică pe care-l pune în aplicare?",0,{"$f":"'E08'!E7","v":0}]
[null,"E8","P8.2",null,"Infrastructurile de protecție existente sunt bine proiectate și construite temeinic pe baza informațiilor privind riscurile?",0,{"$f":"'E08'!E18","v":0}]
[null,"E8","P8.3",null,"În cadrul scenariilor de dezastru stabilite, ar fi posibilă o pierdere semnificativă a acestor două servicii esențiale pentru o parte considerabilă din oraș?",0,{"$f":"'E08'!E29","v":0}]
[null,"E8","P8.4",null,"În cadrul „celui mai pesimist” scenariu, ar fi posibilă o pierdere semnificativă a serviciului pentru o parte considerabilă din oraș? În cazul unei defecțiuni, coridoarele infrastructurii energetice vor rămâne în siguranță (adică, fără risc de scurgeri, pericole de electrocutare etc.)?",0,{"$f":"'E08'!E40","v":0}]
[null,"E8","P8.5",null,"În cadrul „celui mai pesimist” scenariu, ar fi posibilă o pierdere semnificativă a serviciului pentru o parte considerabilă din oraș? În cazul unei defecțiuni, coridoarele infrastructurii de transport vor rămâne în siguranță (adică, fără risc de inundații, șocuri etc) și practicabile?",0,{"$f":"'E08'!E51","v":0}]
[null,"E8","P8.6",null,"În cadrul „celui mai pesimist” scenariu, ar fi posibilă o pierdere semnificativă a serviciului pentru o parte considerabilă din oraș?",0,{"$f":"'E08'!E62","v":0}]
[null,"E8","P8.7",null,"Vor exista suficiente capacități de asistență medicală de urgență pentru a face față traumatismelor gravee în cazul producerii „celui mai pesimist” scenariu?",0,{"$f":"'E08'!E73","v":0}]
[null,"E8","P8.8",null,"% din infrastructura educațională expusă riscului de deteriorare în rezultatul producerii „celor mai probabile” și „celor mai grave” scenarii.",0,{"$f":"'E08'!E84","v":0}]
[null,"E8","P8.9",null,"Vor exista suficiente echipamente de primă intervenție, cu susținere din partea armatei și a civililor, după caz?",0,{"$f":"'E08'!E95","v":0}]
[null,"E9","P9.1",null,"Dispune orașul de un plan sau procedură standard de operare pentru a activa sistemele de avertizare timpurie și prognoză? Ce proporție din populație este accesibilă prin sistemul de avertizare timpurie?",0,{"$f":"'E09'!$E$7","v":0}]
[null,"E9","P9.2",null,"Există un plan de gestionare / pregătire / răspuns la situații de urgență în cazul producerii unui dezastru care să descrie măsurile de atenuare, pregătire și răspuns ale orașului în cazul producerii unor situații de urgență la nivel local?",0,{"$f":"'E09'!$E$18","v":0}]
[null,"E9","P9.3",null,"Autoritatea responsabilă de gestionarea dezastrelor dispune de suficient personal pentru a sprijini operațiunile echipelor de intervenție de urgență în cazul scenariilor de situații de urgență?",0,{"$f":"'E09'!$E$29","v":0}]
[null,"E9","P9.4",null,"Sunt necesitățile de echipamente și aprovizionare, precum și disponibilitatea echipamentelor, clar definite?",0,{"$f":"'E09'!$E$40","v":0}]
[null,"E9","P9.5",null,"Ar putea orașul să continue să-și asigure populația cu hrană și adăpost după eveniment?",0,{"$f":"'E09'!$E$51","v":0}]
[null,"E9","P9.6",null,"Există un centru de operațiuni de urgență, cu participarea tuturor agențiilor, care automatizează procedurile standard de operare concepute pentru a face față scenariilor „celor mai probabile” și ”celor mai grave”?",0,{"$f":"'E09'!$E$62","v":0}]
[null,"E9","P9.7",null,"În activitățile practice și exerciții sunt antrenate atât publicul cât și specialiștii?",0,{"$f":"'E09'!$E$73","v":0}]
[null,"E10","P10.1",null,"Există o strategie sau proces în vigoare cu privire la recuperarea și revenirea post-eveniment, inclusiv relansarea economică, aspectele sociale etc.?",0,{"$f":"'E10'!$E$7","v":0}]
[null,"E10","P10.2",null,"Procesele de evaluare post-eveniment încorporează analiza eșecului și capacitatea de a ține seama de lecțiile învățate pentru a le integra în conceperea și realizarea proiectelor de reconstrucție?",0,{"$f":"'E10'!$E$18","v":0}]

{"sheet":"E01","index":3,"n_rows":33,"n_cols":6,"rows_kept":33,"cut":false,"hidden":false,"merged":[[16,2,16,3],[4,2,4,3],[3,2,3,3],[5,2,5,3],[6,2,9,3],[14,2,14,3],[15,2,15,3],[17,2,20,3],[25,2,25,3],[26,2,26,3],[27,2,27,3],[28,2,31,3]]}
[]
[]
[null,"P1.1 - Planificare"]
[null,"Întrebare","Comentarii"]
[]
[null,"Răspuns","Furnizați mijloacele de verificare (explicație și dovezi)"]
[null,null,null,null,null,{"$f":"IF(E7=1,TRUE,FALSE)","v":false}]
[null,null,null,null,null,{"$f":"IF(E7=2,TRUE,FALSE)","v":false}]
[null,null,null,null,null,{"$f":"IF(E7=3,TRUE,FALSE)","v":false}]
[null,null,null,null,null,{"$f":"IF(E7=4,TRUE,FALSE)","v":false}]
[null,"Acțiuni pentru a obține maximă reziliență","Instituția responsabilă","Intervalul de timp"]
[]
[]
[null,"P1.2 - Organizare, coordonare și participare"]
[null,"Întrebare","Comentarii"]
[]
[null,"Răspuns","Furnizați mijloacele de verificare (explicație și dovezi)"]
[null,null,null,null,null,{"$f":"IF(E18=1,TRUE,FALSE)","v":false}]
[null,null,null,null,null,{"$f":"IF(E18=2,TRUE,FALSE)","v":false}]
[null,null,null,null,null,{"$f":"IF(E18=3,TRUE,FALSE)","v":false}]
[null,null,null,null,null,{"$f":"IF(E18=4,TRUE,FALSE)","v":false}]
[null,"Acțiuni pentru a obține maximă reziliență","Instituția responsabilă","Intervalul de timp"]
[]
[]
[null,"P1.3 - Integrare"]
[null,"Întrebare","Comentarii"]
[]
[null,"Răspuns","Furnizați mijloacele de verificare (explicație și dovezi)"]
[null,null,null,null,null,{"$f":"IF(E29=1,TRUE,FALSE)","v":false}]
[null,null,null,null,null,{"$f":"IF(E29=2,TRUE,FALSE)","v":false}]
[null,null,null,null,null,{"$f":"IF(E29=3,TRUE,FALSE)","v":false}]
[null,null,null,null,null,{"$f":"IF(E29=4,TRUE,FALSE)","v":false}]
[null,"Acțiuni pentru a obține maximă reziliență","Instituția responsabilă","Intervalul de timp"]

{"sheet":"E02","index":4,"n_rows":55,"n_cols":6,"rows_kept":55,"cut":false,"hidden":false,"merged":[[48,2,48,3],[49,2,49,3],[50,2,53,3],[14,2,14,3],[15,2,15,3],[36,2,36,3],[37,2,37,3],[38,2,38,3],[39,2,42,3],[16,2,16,3],[17,2,20,3],[25,2,25,3],[26,2,26,3],[27,2,27,3],[28,2,31,3],[3,2,3,3],[4,2,4,3],[5,2,5,3],[6,2,9,3],[47,2,47,3]]}
[]
[]
[null,"P2.1 - Evaluarea pericolelor"]
[null,"Întrebare","Comentarii"]
[]
[null,"Răspuns","Furnizați mijloacele de verificare (explicație și dovezi)"]
[null,null,null,null,null,{"$f":"IF(E7=1,TRUE,FALSE)","v":false}]
[null,null,null,null,null,{"$f":"IF(E7=2,TRUE,FALSE)","v":false}]
[null,null,null,null,null,{"$f":"IF(E7=3,TRUE,FALSE)","v":false}]
[null,null,null,null,null,{"$f":"IF(E7=4,TRUE,FALSE)","v":false}]
[null,"Acțiuni pentru a obține maximă reziliență","Instituția responsabilă","Intervalul de timp"]
[]
[]
[null,"P2.2 - Înțelegerea comună a riscului pentru infrastructură"]
[null,"Întrebare","Comentarii"]
[]
[null,"Răspuns","Furnizați mijloacele de verificare (explicație și dovezi)"]
[null,null,null,null,null,{"$f":"IF(E18=1,TRUE,FALSE)","v":false}]
[null,null,null,null,null,{"$f":"IF(E18=2,TRUE,FALSE)","v":false}]
[null,null,null,null,null,{"$f":"IF(E18=3,TRUE,FALSE)","v":false}]
[null,null,null,null,null,{"$f":"IF(E18=4,TRUE,FALSE)","v":false}]
[null,"Acțiuni pentru a obține maximă reziliență","Instituția responsabilă","Intervalul de timp"]
[]
[]
[null,"P2.3 - Cunoștințe în materie de expunere și vulnerabilitate"]
[null,"Întrebare","Comentarii"]
[]
[null,"Răspuns","Furnizați mijloacele de verificare (explicație și dovezi)"]
[null,null,null,null,null,{"$f":"IF(E29=1,TRUE,FALSE)","v":false}]
[null,null,null,null,null,{"$f":"IF(E29=2,TRUE,FALSE)","v":false}]
[null,null,null,null,null,{"$f":"IF(E29=3,TRUE,FALSE)","v":false}]
[null,null,null,null,null,{"$f":"IF(E29=4,TRUE,FALSE)","v":false}]
[null,"Acțiuni pentru a obține maximă reziliență","Instituția responsabilă","Intervalul de timp"]
[]
[]
[null,"P2.4 - Efectul de domino"]
[null,"Întrebare","Comentarii"]
[]
[null,"Răspuns","Furnizați mijloacele de verificare (explicație și dovezi)"]
[null,null,null,null,null,{"$f":"IF(E40=1,TRUE,FALSE)","v":false}]
[null,null,null,null,null,{"$f":"IF(E40=2,TRUE,FALSE)","v":false}]
[null,null,null,null,null,{"$f":"IF(E40=3,TRUE,FALSE)","v":false}]
[null,null,null,null,null,{"$f":"IF(E40=4,TRUE,FALSE)","v":false}]
[null,"Acțiuni pentru a obține maximă reziliență","Instituția responsabilă","Intervalul de timp"]
[]
[]
[null,"P2.5 - Prezentare și proces de actualizare a informațiilor privind riscurile"]
[null,"Întrebare","Comentarii"]
[]
[null,"Răspuns","Furnizați mijloacele de verificare (explicație și dovezi)"]
[null,null,null,null,null,{"$f":"IF(E51=1,TRUE,FALSE)","v":false}]
[null,null,null,null,null,{"$f":"IF(E51=2,TRUE,FALSE)","v":false}]
[null,null,null,null,null,{"$f":"IF(E51=3,TRUE,FALSE)","v":false}]
[null,null,null,null,null,{"$f":"IF(E51=4,TRUE,FALSE)","v":false}]
[null,"Acțiuni pentru a obține maximă reziliență","Instituția responsabilă","Intervalul de timp"]

{"sheet":"E03","index":5,"n_rows":44,"n_cols":6,"rows_kept":44,"cut":false,"hidden":false,"merged":[[36,2,36,3],[37,2,37,3],[38,2,38,3],[39,2,42,3],[16,2,16,3],[17,2,20,3],[25,2,25,3],[26,2,26,3],[27,2,27,3],[28,2,31,3],[15,2,15,3],[3,2,3,3],[4,2,4,3],[5,2,5,3],[6,2,9,3],[14,2,14,3]]}
[]
[]
[null,"P3.1 - Cunoașterea abordărilor de atragere a noilor investiții în oraș"]
[null,"Întrebare","Comentarii"]
[]
[null,"Răspuns","Furnizați mijloacele de verificare (explicație și dovezi)"]
[null,null,null,null,null,{"$f":"IF(E7=1,TRUE,FALSE)","v":false}]
[null,null,null,null,null,{"$f":"IF(E7=2,TRUE,FALSE)","v":false}]
[null,null,null,null,null,{"$f":"IF(E7=3,TRUE,FALSE)","v":false}]
[null,null,null,null,null,{"$f":"IF(E7=4,TRUE,FALSE)","v":false}]
[null,"Acțiuni pentru a obține maximă reziliență","Instituția responsabilă","Intervalul de timp"]
[]
[]
[null,"P3.2 - Planul financiar și bugetul pentru reziliență, inclusiv fondurile de urgență"]
[null,"Întrebare","Comentarii"]
[]
[null,"Răspuns","Furnizați mijloacele de verificare (explicație și dovezi)"]
[null,null,null,null,null,{"$f":"IF(E18=1,TRUE,FALSE)","v":false}]
[null,null,null,null,null,{"$f":"IF(E18=2,TRUE,FALSE)","v":false}]
[null,null,null,null,null,{"$f":"IF(E18=3,TRUE,FALSE)","v":false}]
[null,null,null,null,null,{"$f":"IF(E18=4,TRUE,FALSE)","v":false}]
[null,"Acțiuni pentru a obține maximă reziliență","Instituția responsabilă","Intervalul de timp"]
[]
[]
[null,"P3.3 - Asigurări"]
[null,"Întrebare","Comentarii"]
[]
[null,"Răspuns","Furnizați mijloacele de verificare (explicație și dovezi)"]
[null,null,null,null,null,{"$f":"IF(E29=1,TRUE,FALSE)","v":false}]
[null,null,null,null,null,{"$f":"IF(E29=2,TRUE,FALSE)","v":false}]
[null,null,null,null,null,{"$f":"IF(E29=3,TRUE,FALSE)","v":false}]
[null,null,null,null,null,{"$f":"IF(E29=4,TRUE,FALSE)","v":false}]
[null,"Acțiuni pentru a obține maximă reziliență","Instituția responsabilă","Intervalul de timp"]
[]
[]
[null,"P3.4 - Stimulente"]
[null,"Întrebare","Comentarii"]
[]
[null,"Răspuns","Furnizați mijloacele de verificare (explicație și dovezi)"]
[null,null,null,null,null,{"$f":"IF(E40=1,TRUE,FALSE)","v":false}]
[null,null,null,null,null,{"$f":"IF(E40=2,TRUE,FALSE)","v":false}]
[null,null,null,null,null,{"$f":"IF(E40=3,TRUE,FALSE)","v":false}]
[null,null,null,null,null,{"$f":"IF(E40=4,TRUE,FALSE)","v":false}]
[null,"Acțiuni pentru a obține maximă reziliență","Instituția responsabilă","Intervalul de timp"]

{"sheet":"E04","index":6,"n_rows":44,"n_cols":6,"rows_kept":44,"cut":false,"hidden":false,"merged":[[36,2,36,3],[37,2,37,3],[38,2,38,3],[39,2,42,3],[16,2,16,3],[17,2,20,3],[25,2,25,3],[26,2,26,3],[27,2,27,3],[28,2,31,3],[15,2,15,3],[3,2,3,3],[4,2,4,3],[5,2,5,3],[6,2,9,3],[14,2,14,3]]}
[]
[]
[null,"P4.1 - Zonarea utilizării terenului"]
[null,"Întrebare","Comentarii"]
[]
[null,"Răspuns","Furnizați mijloacele de verificare (explicație și dovezi)"]
[null,null,null,null,null,{"$f":"IF(E7=1,TRUE,FALSE)","v":false}]
[null,null,null,null,null,{"$f":"IF(E7=2,TRUE,FALSE)","v":false}]
[null,null,null,null,null,{"$f":"IF(E7=3,TRUE,FALSE)","v":false}]
[null,null,null,null,null,{"$f":"IF(E7=4,TRUE,FALSE)","v":false}]
[null,"Acțiuni pentru a obține maximă reziliență","Instituția responsabilă","Intervalul de timp"]
[]
[]
[null,"P4.2 - Noi dezvoltări urbane"]
[null,"Întrebare","Comentarii"]
[]
[null,"Răspuns","Furnizați mijloacele de verificare (explicație și dovezi)"]
[null,null,null,null,null,{"$f":"IF(E18=1,TRUE,FALSE)","v":false}]
[null,null,null,null,null,{"$f":"IF(E18=2,TRUE,FALSE)","v":false}]
[null,null,null,null,null,{"$f":"IF(E18=3,TRUE,FALSE)","v":false}]
[null,null,null,null,null,{"$f":"IF(E18=4,TRUE,FALSE)","v":false}]
[null,"Acțiuni pentru a obține maximă reziliență","Instituția responsabilă","Intervalul de timp"]
[]
[]
[null,"P4.3 - Norme și standarde de construcții"]
[null,"Întrebare","Comentarii"]
[]
[null,"Răspuns","Furnizați mijloacele de verificare (explicație și dovezi)"]
[null,null,null,null,null,{"$f":"IF(E29=1,TRUE,FALSE)","v":false}]
[null,null,null,null,null,{"$f":"IF(E29=2,TRUE,FALSE)","v":false}]
[null,null,null,null,null,{"$f":"IF(E29=3,TRUE,FALSE)","v":false}]
[null,null,null,null,null,{"$f":"IF(E29=4,TRUE,FALSE)","v":false}]
[null,"Acțiuni pentru a obține maximă reziliență","Instituția responsabilă","Intervalul de timp"]
[]
[]
[null,"P4.4 - Aplicarea zonării, normelor și standardelor de construcție"]
[null,"Întrebare","Comentarii"]
[]
[null,"Răspuns","Furnizați mijloacele de verificare (explicație și dovezi)"]
[null,null,null,null,null,{"$f":"IF(E40=1,TRUE,FALSE)","v":false}]
[null,null,null,null,null,{"$f":"IF(E40=2,TRUE,FALSE)","v":false}]
[null,null,null,null,null,{"$f":"IF(E40=3,TRUE,FALSE)","v":false}]
[null,null,null,null,null,{"$f":"IF(E40=4,TRUE,FALSE)","v":false}]
[null,"Acțiuni pentru a obține maximă reziliență","Instituția responsabilă","Intervalul de timp"]

{"sheet":"E05","index":7,"n_rows":33,"n_cols":6,"rows_kept":33,"cut":false,"hidden":false,"merged":[[28,2,31,3],[3,2,3,3],[4,2,4,3],[5,2,5,3],[6,2,9,3],[14,2,14,3],[15,2,15,3],[16,2,16,3],[17,2,20,3],[25,2,25,3],[26,2,26,3],[27,2,27,3]]}
[]
[]
[null,"P5.1 - Cunoașterea și înțelegerea serviciilor / funcțiilor ecosistemice"]
[null,"Întrebare","Comentarii"]
[]
[null,"Răspuns","Furnizați mijloacele de verificare (explicație și dovezi)"]
[null,null,null,null,null,{"$f":"IF(E7=1,TRUE,FALSE)","v":false}]
[null,null,null,null,null,{"$f":"IF(E7=2,TRUE,FALSE)","v":false}]
[null,null,null,null,null,{"$f":"IF(E7=3,TRUE,FALSE)","v":false}]
[null,null,null,null,null,{"$f":"IF(E7=4,TRUE,FALSE)","v":false}]
[null,"Acțiuni pentru a obține maximă reziliență","Instituția responsabilă","Intervalul de timp"]
[]
[]
[null,"P5.2 - Integrarea infrastructurii verzi și albastre în politicile și proiectele orașului"]
[null,"Întrebare","Comentarii"]
[]
[null,"Răspuns","Furnizați mijloacele de verificare (explicație și dovezi)"]
[null,null,null,null,null,{"$f":"IF(E18=1,TRUE,FALSE)","v":false}]
[null,null,null,null,null,{"$f":"IF(E18=2,TRUE,FALSE)","v":false}]
[null,null,null,null,null,{"$f":"IF(E18=3,TRUE,FALSE)","v":false}]
[null,null,null,null,null,{"$f":"IF(E18=4,TRUE,FALSE)","v":false}]
[null,"Acțiuni pentru a obține maximă reziliență","Instituția responsabilă","Intervalul de timp"]
[]
[]
[null,"P5.3 - Probleme de mediu transfrontaliere"]
[null,"Întrebare","Comentarii"]
[]
[null,"Răspuns","Furnizați mijloacele de verificare (explicație și dovezi)"]
[null,null,null,null,null,{"$f":"IF(E29=1,TRUE,FALSE)","v":false}]
[null,null,null,null,null,{"$f":"IF(E29=2,TRUE,FALSE)","v":false}]
[null,null,null,null,null,{"$f":"IF(E29=3,TRUE,FALSE)","v":false}]
[null,null,null,null,null,{"$f":"IF(E29=4,TRUE,FALSE)","v":false}]
[null,"Acțiuni pentru a obține maximă reziliență","Instituția responsabilă","Intervalul de timp"]

{"sheet":"E06","index":8,"n_rows":66,"n_cols":6,"rows_kept":66,"cut":false,"hidden":false,"merged":[[61,2,64,3],[36,2,36,3],[37,2,37,3],[38,2,38,3],[39,2,42,3],[47,2,47,3],[48,2,48,3],[49,2,49,3],[50,2,53,3],[58,2,58,3],[59,2,59,3],[60,2,60,3],[28,2,31,3],[3,2,3,3],[4,2,4,3],[5,2,5,3],[6,2,9,3],[14,2,14,3],[15,2,15,3],[16,2,16,3],[17,2,20,3],[25,2,25,3],[26,2,26,3],[27,2,27,3]]}
[]
[]
[null,"P6.1 - Competențe și experiență"]
[null,"Întrebare","Comentarii"]
[]
[null,"Răspuns","Furnizați mijloacele de verificare (explicație și dovezi)"]
[null,null,null,null,null,{"$f":"IF(E7=1,TRUE,FALSE)","v":false}]
[null,null,null,null,null,{"$f":"IF(E7=2,TRUE,FALSE)","v":false}]
[null,null,null,null,null,{"$f":"IF(E7=3,TRUE,FALSE)","v":false}]
[null,null,null,null,null,{"$f":"IF(E7=4,TRUE,FALSE)","v":false}]
[null,"Acțiuni pentru a obține maximă reziliență","Instituția responsabilă","Intervalul de timp"]
[]
[]
[null,"P6.2 - Educarea și sensibilizarea publicului"]
[null,"Întrebare","Comentarii"]
[]
[null,"Răspuns","Furnizați mijloacele de verificare (explicație și dovezi)"]
[null,null,null,null,null,{"$f":"IF(E18=1,TRUE,FALSE)","v":false}]
[null,null,null,null,null,{"$f":"IF(E18=2,TRUE,FALSE)","v":false}]
[null,null,null,null,null,{"$f":"IF(E18=3,TRUE,FALSE)","v":false}]
[null,null,null,null,null,{"$f":"IF(E18=4,TRUE,FALSE)","v":false}]
[null,"Acțiuni pentru a obține maximă reziliență","Instituția responsabilă","Intervalul de timp"]
[]
[]
[null,"P6.3 - Partajarea datelor"]
[null,"Întrebare","Comentarii"]
[]
[null,"Răspuns","Furnizați mijloacele de verificare (explicație și dovezi)"]
[null,null,null,null,null,{"$f":"IF(E29=1,TRUE,FALSE)","v":false}]
[null,null,null,null,null,{"$f":"IF(E29=2,TRUE,FALSE)","v":false}]
[null,null,null,null,null,{"$f":"IF(E29=3,TRUE,FALSE)","v":false}]
[null,null,null,null,null,{"$f":"IF(E29=4,TRUE,FALSE)","v":false}]
[null,"Acțiuni pentru a obține maximă reziliență","Instituția responsabilă","Intervalul de timp"]
[]
[]
[null,"P6.4 - Desfășurarea activităților de formare"]
[null,"Întrebare","Comentarii"]
[]
[null,"Răspuns","Furnizați mijloacele de verificare (explicație și dovezi)"]
[null,null,null,null,null,{"$f":"IF(E40=1,TRUE,FALSE)","v":false}]
[null,null,null,null,null,{"$f":"IF(E40=2,TRUE,FALSE)","v":false}]
[null,null,null,null,null,{"$f":"IF(E40=3,TRUE,FALSE)","v":false}]
[null,null,null,null,null,{"$f":"IF(E40=4,TRUE,FALSE)","v":false}]
[null,"Acțiuni pentru a obține maximă reziliență","Instituția responsabilă","Intervalul de timp"]
[]
[]
[null,"P6.5 - Limbi"]
[null,"Întrebare","Comentarii"]
[]
[null,"Răspuns","Furnizați mijloacele de verificare (explicație și dovezi)"]
[null,null,null,null,null,{"$f":"IF(E51=1,TRUE,FALSE)","v":false}]
[null,null,null,null,null,{"$f":"IF(E51=2,TRUE,FALSE)","v":false}]
[null,null,null,null,null,{"$f":"IF(E51=3,TRUE,FALSE)","v":false}]
[null,null,null,null,null,{"$f":"IF(E51=4,TRUE,FALSE)","v":false}]
[null,"Acțiuni pentru a obține maximă reziliență","Instituția responsabilă","Intervalul de timp"]
[]
[]
[null,"P6.6 - Învățând de la alții"]
[null,"Întrebare","Comentarii"]
[]
[null,"Răspuns","Furnizați mijloacele de verificare (explicație și dovezi)"]
[null,null,null,null,null,{"$f":"IF(E62=1,TRUE,FALSE)","v":false}]
[null,null,null,null,null,{"$f":"IF(E62=2,TRUE,FALSE)","v":false}]
[null,null,null,null,null,{"$f":"IF(E62=3,TRUE,FALSE)","v":false}]
[null,null,null,null,null,{"$f":"IF(E62=4,TRUE,FALSE)","v":false}]
[null,"Acțiuni pentru a obține maximă reziliență","Instituția responsabilă","Intervalul de timp"]

{"sheet":"E07","index":9,"n_rows":44,"n_cols":6,"rows_kept":44,"cut":false,"hidden":false,"merged":[[36,2,36,3],[37,2,37,3],[38,2,38,3],[39,2,42,3],[16,2,16,3],[17,2,20,3],[25,2,25,3],[26,2,26,3],[27,2,27,3],[28,2,31,3],[15,2,15,3],[3,2,3,3],[4,2,4,3],[5,2,5,3],[6,2,9,3],[14,2,14,3]]}
[]
[]
[null,"P7.1 - Organizații, rețele și activități de formare la nivel comunitar sau local"]
[null,"Întrebare","Comentarii"]
[]
[null,"Răspuns","Furnizați mijloacele de verificare (explicație și dovezi)"]
[null,null,null,null,null,{"$f":"IF(E7=1,TRUE,FALSE)","v":false}]
[null,null,null,null,null,{"$f":"IF(E7=2,TRUE,FALSE)","v":false}]
[null,null,null,null,null,{"$f":"IF(E7=3,TRUE,FALSE)","v":false}]
[null,null,null,null,null,{"$f":"IF(E7=4,TRUE,FALSE)","v":false}]
[null,"Acțiuni pentru a obține maximă reziliență","Instituția responsabilă","Intervalul de timp"]
[]
[]
[null,"P7.2 - Rețele sociale „Nu lăsa pe nimeni în urmă”"]
[null,"Întrebare","Comentarii"]
[]
[null,"Răspuns","Furnizați mijloacele de verificare (explicație și dovezi)"]
[null,null,null,null,null,{"$f":"IF(E18=1,TRUE,FALSE)","v":false}]
[null,null,null,null,null,{"$f":"IF(E18=2,TRUE,FALSE)","v":false}]
[null,null,null,null,null,{"$f":"IF(E18=3,TRUE,FALSE)","v":false}]
[null,null,null,null,null,{"$f":"IF(E18=4,TRUE,FALSE)","v":false}]
[null,"Acțiuni pentru a obține maximă reziliență","Instituția responsabilă","Intervalul de timp"]
[]
[]
[null,"P7.3 - Sector privat / angajatori"]
[null,"Întrebare","Comentarii"]
[]
[null,"Răspuns","Furnizați mijloacele de verificare (explicație și dovezi)"]
[null,null,null,null,null,{"$f":"IF(E29=1,TRUE,FALSE)","v":false}]
[null,null,null,null,null,{"$f":"IF(E29=2,TRUE,FALSE)","v":false}]
[null,null,null,null,null,{"$f":"IF(E29=3,TRUE,FALSE)","v":false}]
[null,null,null,null,null,{"$f":"IF(E29=4,TRUE,FALSE)","v":false}]
[null,"Acțiuni pentru a obține maximă reziliență","Instituția responsabilă","Intervalul de timp"]
[]
[]
[null,"P7.4 - Modalități de implicare a cetățenilor"]
[null,"Întrebare","Comentarii"]
[]
[null,"Răspuns","Furnizați mijloacele de verificare (explicație și dovezi)"]
[null,null,null,null,null,{"$f":"IF(E40=1,TRUE,FALSE)","v":false}]
[null,null,null,null,null,{"$f":"IF(E40=2,TRUE,FALSE)","v":false}]
[null,null,null,null,null,{"$f":"IF(E40=3,TRUE,FALSE)","v":false}]
[null,null,null,null,null,{"$f":"IF(E40=4,TRUE,FALSE)","v":false}]
[null,"Acțiuni pentru a obține maximă reziliență","Instituția responsabilă","Intervalul de timp"]

{"sheet":"E08","index":10,"n_rows":99,"n_cols":6,"rows_kept":99,"cut":false,"hidden":false,"merged":[[94,2,97,3],[80,2,80,3],[81,2,81,3],[82,2,82,3],[83,2,86,3],[91,2,91,3],[92,2,92,3],[93,2,93,3],[27,2,27,3],[61,2,64,3],[36,2,36,3],[37,2,37,3],[38,2,38,3],[39,2,42,3],[47,2,47,3],[48,2,48,3],[49,2,49,3],[50,2,53,3],[58,2,58,3],[59,2,59,3],[60,2,60,3],[15,2,15,3],[16,2,16,3],[17,2,20,3],[25,2,25,3],[26,2,26,3],[3,2,3,3],[4,2,4,3],[5,2,5,3],[6,2,9,3],[14,2,14,3],[69,2,69,3],[70,2,70,3],[71,2,71,3],[72,2,75,3],[28,2,31,3]]}
[]
[]
[null,"P8.1 - Prezentare generală a infrastructurii de importanță critică"]
[null,"Întrebare","Comentarii"]
[]
[null,"Răspuns","Furnizați mijloacele de verificare (explicație și dovezi)"]
[null,null,null,null,null,{"$f":"IF(E7=1,TRUE,FALSE)","v":false}]
[null,null,null,null,null,{"$f":"IF(E7=2,TRUE,FALSE)","v":false}]
[null,null,null,null,null,{"$f":"IF(E7=3,TRUE,FALSE)","v":false}]
[null,null,null,null,null,{"$f":"IF(E7=4,TRUE,FALSE)","v":false}]
[null,"Acțiuni pentru a obține maximă reziliență","Instituția responsabilă","Intervalul de timp"]
[]
[]
[null,"P8.2 - Infrastructuri de protecție"]
[null,"Întrebare","Comentarii"]
[]
[null,"Răspuns","Furnizați mijloacele de verificare (explicație și dovezi)"]
[null,null,null,null,null,{"$f":"IF(E18=1,TRUE,FALSE)","v":false}]
[null,null,null,null,null,{"$f":"IF(E18=2,TRUE,FALSE)","v":false}]
[null,null,null,null,null,{"$f":"IF(E18=3,TRUE,FALSE)","v":false}]
[null,null,null,null,null,{"$f":"IF(E18=4,TRUE,FALSE)","v":false}]
[null,"Acțiuni pentru a obține maximă reziliență","Instituția responsabilă","Intervalul de timp"]
[]
[]
[null,"P8.3 - Apă potabilă și canalizare"]
[null,"Întrebare","Comentarii"]
[]
[null,"Răspuns","Furnizați mijloacele de verificare (explicație și dovezi)"]
[null,null,null,null,null,{"$f":"IF(E29=1,TRUE,FALSE)","v":false}]
[null,null,null,null,null,{"$f":"IF(E29=2,TRUE,FALSE)","v":false}]
[null,null,null,null,null,{"$f":"IF(E29=3,TRUE,FALSE)","v":false}]
[null,null,null,null,null,{"$f":"IF(E29=4,TRUE,FALSE)","v":false}]
[null,"Acțiuni pentru a obține maximă reziliență","Instituția responsabilă","Intervalul de timp"]
[]
[]
[null,"P8.4 - Energie "]
[null,"Întrebare","Comentarii"]
[]
[null,"Răspuns","Furnizați mijloacele de verificare (explicație și dovezi)"]
[null,null,null,null,null,{"$f":"IF(E40=1,TRUE,FALSE)","v":false}]
[null,null,null,null,null,{"$f":"IF(E40=2,TRUE,FALSE)","v":false}]
[null,null,null,null,null,{"$f":"IF(E40=3,TRUE,FALSE)","v":false}]
[null,null,null,null,null,{"$f":"IF(E40=4,TRUE,FALSE)","v":false}]
[null,"Acțiuni pentru a obține maximă reziliență","Instituția responsabilă","Intervalul de timp"]
[]
[]
[null,"P8.5 - Transport"]
[null,"Întrebare","Comentarii"]
[]
[null,"Răspuns","Furnizați mijloacele de verificare (explicație și dovezi)"]
[null,null,null,null,null,{"$f":"IF(E51=1,TRUE,FALSE)","v":false}]
[null,null,null,null,null,{"$f":"IF(E51=2,TRUE,FALSE)","v":false}]
[null,null,null,null,null,{"$f":"IF(E51=3,TRUE,FALSE)","v":false}]
[null,null,null,null,null,{"$f":"IF(E51=4,TRUE,FALSE)","v":false}]
[null,"Acțiuni pentru a obține maximă reziliență","Instituția responsabilă","Intervalul de timp"]
[]
[]
[null,"P8.6 - Comunicații"]
[null,"Întrebare","Comentarii"]
[]
[null,"Răspuns","Furnizați mijloacele de verificare (explicație și dovezi)"]
[null,null,null,null,null,{"$f":"IF(E62=1,TRUE,FALSE)","v":false}]
[null,null,null,null,null,{"$f":"IF(E62=2,TRUE,FALSE)","v":false}]
[null,null,null,null,null,{"$f":"IF(E62=3,TRUE,FALSE)","v":false}]
[null,null,null,null,null,{"$f":"IF(E62=4,TRUE,FALSE)","v":false}]
[null,"Acțiuni pentru a obține maximă reziliență","Instituția responsabilă","Intervalul de timp"]
[]
[]
[null,"P8.7 - Asistență medicală"]
[null,"Întrebare","Comentarii"]
[]
[null,"Răspuns","Furnizați mijloacele de verificare (explicație și dovezi)"]
[null,null,null,null,null,{"$f":"IF(E73=1,TRUE,FALSE)","v":false}]
[null,null,null,null,null,{"$f":"IF(E73=2,TRUE,FALSE)","v":false}]
[null,null,null,null,null,{"$f":"IF(E73=3,TRUE,FALSE)","v":false}]
[null,null,null,null,null,{"$f":"IF(E73=4,TRUE,FALSE)","v":false}]
[null,"Acțiuni pentru a obține maximă reziliență","Instituția responsabilă","Intervalul de timp"]
[]
[]
[null,"P8.8 - Instituții de învățământ"]
[null,"Întrebare","Comentarii"]
[]
[null,"Răspuns","Furnizați mijloacele de verificare (explicație și dovezi)"]
[null,null,null,null,null,{"$f":"IF(E84=1,TRUE,FALSE)","v":false}]
[null,null,null,null,null,{"$f":"IF(E84=2,TRUE,FALSE)","v":false}]
[null,null,null,null,null,{"$f":"IF(E84=3,TRUE,FALSE)","v":false}]
[null,null,null,null,null,{"$f":"IF(E84=4,TRUE,FALSE)","v":false}]
[null,"Acțiuni pentru a obține maximă reziliență","Instituția responsabilă","Intervalul de timp"]
[]
[]
[null,"P8.9 - Activele echipelor de primă intervenție"]
[null,"Întrebare","Comentarii"]
[]
[null,"Răspuns","Furnizați mijloacele de verificare (explicație și dovezi)"]
[null,null,null,null,null,{"$f":"IF(E95=1,TRUE,FALSE)","v":false}]
[null,null,null,null,null,{"$f":"IF(E95=2,TRUE,FALSE)","v":false}]
[null,null,null,null,null,{"$f":"IF(E95=3,TRUE,FALSE)","v":false}]
[null,null,null,null,null,{"$f":"IF(E95=4,TRUE,FALSE)","v":false}]
[null,"Acțiuni pentru a obține maximă reziliență","Instituția responsabilă","Intervalul de timp"]

{"sheet":"E09","index":11,"n_rows":77,"n_cols":6,"rows_kept":77,"cut":false,"hidden":false,"merged":[[3,2,3,3],[4,2,4,3],[5,2,5,3],[6,2,9,3],[14,2,14,3],[15,2,15,3],[16,2,16,3],[17,2,20,3],[25,2,25,3],[26,2,26,3],[27,2,27,3],[28,2,31,3],[36,2,36,3],[37,2,37,3],[38,2,38,3],[39,2,42,3],[47,2,47,3],[48,2,48,3],[49,2,49,3],[50,2,53,3],[70,2,70,3],[71,2,71,3],[72,2,75,3],[58,2,58,3],[59,2,59,3],[60,2,60,3],[61,2,64,3],[69,2,69,3]]}
[]
[]
[null,"P9.1 - Avertizare timpurie"]
[null,"Întrebare","Comentarii"]
[]
[null,"Răspuns","Furnizați mijloacele de verificare (explicație și dovezi)"]
[null,null,null,null,null,{"$f":"IF(E7=1,TRUE,FALSE)","v":false}]
[null,null,null,null,null,{"$f":"IF(E7=2,TRUE,FALSE)","v":false}]
[null,null,null,null,null,{"$f":"IF(E7=3,TRUE,FALSE)","v":false}]
[null,null,null,null,null,{"$f":"IF(E7=4,TRUE,FALSE)","v":false}]
[null,"Acțiuni pentru a obține maximă reziliență","Instituția responsabilă","Intervalul de timp"]
[]
[]
[null,"P9.2 - Planuri de gestionare a evenimentelor"]
[null,"Întrebare","Comentarii"]
[]
[null,"Răspuns","Furnizați mijloacele de verificare (explicație și dovezi)"]
[null,null,null,null,null,{"$f":"IF(E18=1,TRUE,FALSE)","v":false}]
[null,null,null,null,null,{"$f":"IF(E18=2,TRUE,FALSE)","v":false}]
[null,null,null,null,null,{"$f":"IF(E18=3,TRUE,FALSE)","v":false}]
[null,null,null,null,null,{"$f":"IF(E18=4,TRUE,FALSE)","v":false}]
[null,"Acțiuni pentru a obține maximă reziliență","Instituția responsabilă","Intervalul de timp"]
[]
[]
[null,"P9.3 - Personalul / necesitățile echipelor de intervenție"]
[null,"Întrebare","Comentarii"]
[]
[null,"Răspuns","Furnizați mijloacele de verificare (explicație și dovezi)"]
[null,null,null,null,null,{"$f":"IF(E29=1,TRUE,FALSE)","v":false}]
[null,null,null,null,null,{"$f":"IF(E29=2,TRUE,FALSE)","v":false}]
[null,null,null,null,null,{"$f":"IF(E29=3,TRUE,FALSE)","v":false}]
[null,null,null,null,null,{"$f":"IF(E29=4,TRUE,FALSE)","v":false}]
[null,"Acțiuni pentru a obține maximă reziliență","Instituția responsabilă","Intervalul de timp"]
[]
[]
[null,"P9.4 - Necesitățile de echipamente și ajutoare"]
[null,"Întrebare","Comentarii"]
[]
[null,"Răspuns","Furnizați mijloacele de verificare (explicație și dovezi)"]
[null,null,null,null,null,{"$f":"IF(E40=1,TRUE,FALSE)","v":false}]
[null,null,null,null,null,{"$f":"IF(E40=2,TRUE,FALSE)","v":false}]
[null,null,null,null,null,{"$f":"IF(E40=3,TRUE,FALSE)","v":false}]
[null,null,null,null,null,{"$f":"IF(E40=4,TRUE,FALSE)","v":false}]
[null,"Acțiuni pentru a obține maximă reziliență","Instituția responsabilă","Intervalul de timp"]
[]
[]
[null,"P9.5 - Alimente, adăpost, produse de larg consum și aprovizionare cu combustibil"]
[null,"Întrebare","Comentarii"]
[]
[null,"Răspuns","Furnizați mijloacele de verificare (explicație și dovezi)"]
[null,null,null,null,null,{"$f":"IF(E51=1,TRUE,FALSE)","v":false}]
[null,null,null,null,null,{"$f":"IF(E51=2,TRUE,FALSE)","v":false}]
[null,null,null,null,null,{"$f":"IF(E51=3,TRUE,FALSE)","v":false}]
[null,null,null,null,null,{"$f":"IF(E51=4,TRUE,FALSE)","v":false}]
[null,"Acțiuni pentru a obține maximă reziliență","Instituția responsabilă","Intervalul de timp"]
[]
[]
[null,"P9.6 - Interoperabilitate și cooperare inter-disciplinară"]
[null,"Întrebare","Comentarii"]
[]
[null,"Răspuns","Furnizați mijloacele de verificare (explicație și dovezi)"]
[null,null,null,null,null,{"$f":"IF(E62=1,TRUE,FALSE)","v":false}]
[null,null,null,null,null,{"$f":"IF(E62=2,TRUE,FALSE)","v":false}]
[null,null,null,null,null,{"$f":"IF(E62=3,TRUE,FALSE)","v":false}]
[null,null,null,null,null,{"$f":"IF(E62=4,TRUE,FALSE)","v":false}]
[null,"Acțiuni pentru a obține maximă reziliență","Instituția responsabilă","Intervalul de timp"]
[]
[]
[null,"P9.7 - Exerciții"]
[null,"Întrebare","Comentarii"]
[]
[null,"Răspuns","Furnizați mijloacele de verificare (explicație și dovezi)"]
[null,null,null,null,null,{"$f":"IF(E73=1,TRUE,FALSE)","v":false}]
[null,null,null,null,null,{"$f":"IF(E73=2,TRUE,FALSE)","v":false}]
[null,null,null,null,null,{"$f":"IF(E73=3,TRUE,FALSE)","v":false}]
[null,null,null,null,null,{"$f":"IF(E73=4,TRUE,FALSE)","v":false}]
[null,"Acțiuni pentru a obține maximă reziliență","Instituția responsabilă","Intervalul de timp"]

{"sheet":"E10","index":12,"n_rows":22,"n_cols":6,"rows_kept":22,"cut":false,"hidden":false,"merged":[[15,2,15,3],[16,2,16,3],[17,2,20,3],[3,2,3,3],[4,2,4,3],[5,2,5,3],[6,2,9,3],[14,2,14,3]]}
[]
[]
[null,"P10.1 - Planificarea recuperării post-eveniment – pre-eveniment"]
[null,"Întrebare","Comentarii"]
[]
[null,"Răspuns","Furnizați mijloacele de verificare (explicație și dovezi)"]
[null,null,null,null,null,{"$f":"IF(E7=1,TRUE,FALSE)","v":false}]
[null,null,null,null,null,{"$f":"IF(E7=2,TRUE,FALSE)","v":false}]
[null,null,null,null,null,{"$f":"IF(E7=3,TRUE,FALSE)","v":false}]
[null,null,null,null,null,{"$f":"IF(E7=4,TRUE,FALSE)","v":false}]
[null,"Acțiuni pentru a obține maximă reziliență","Instituția responsabilă","Intervalul de timp"]
[]
[]
[null,"P10.2 - Lecții învățate / învățarea în buclă"]
[null,"Întrebare","Comentarii"]
[]
[null,"Răspuns","Furnizați mijloacele de verificare (explicație și dovezi)"]
[null,null,null,null,null,{"$f":"IF(E18=1,TRUE,FALSE)","v":false}]
[null,null,null,null,null,{"$f":"IF(E18=2,TRUE,FALSE)","v":false}]
[null,null,null,null,null,{"$f":"IF(E18=3,TRUE,FALSE)","v":false}]
[null,null,null,null,null,{"$f":"IF(E18=4,TRUE,FALSE)","v":false}]
[null,"Acțiuni pentru a obține maximă reziliență","Instituția responsabilă","Intervalul de timp"]

{"sheet":"About","index":13,"n_rows":0,"n_cols":0,"rows_kept":0,"cut":false,"hidden":false,"merged":[]}